[Event "Early-Titled-Tuesday-Blitz-April-02-2024"]
[Site "Chess.com"]
[Date "2024.04.02"]
[Round "11"]
[White "shimastream"]
[Black "superchess02"]
[Result "1/2-1/2"]
[WhiteElo "3005"]
[BlackElo "2873"]
[TimeControl "180+1"]
[EndTime "10:09:38 PDT"]
[Termination "Game drawn by stalemate"]

1. e4 {[%clk 0:03:00.9]} 1... c5 {[%clk 0:03:00.2]} 2. d4 {[%clk 0:02:56.3]}
2... cxd4 {[%clk 0:03:01.1]} 3. Qxd4 {[%clk 0:02:57.1]} 3... Nc6 {[%clk
0:03:01]} 4. Qd3 {[%clk 0:02:57.3]} 4... g6 {[%clk 0:03:00]} 5. Nf3 {[%clk
0:02:56.5]} 5... Bg7 {[%clk 0:02:59.7]} 6. Nc3 {[%clk 0:02:57]} 6... d6 {[%clk
0:02:59.9]} 7. Be2 {[%clk 0:02:57.4]} 7... Bg4 {[%clk 0:02:59.2]} 8. O-O {[%clk
0:02:57.7]} 8... Nf6 {[%clk 0:02:58.9]} 9. Nd5 {[%clk 0:02:57.9]} 9... O-O
{[%clk 0:02:57.8]} 10. c3 {[%clk 0:02:57]} 10... Rc8 {[%clk 0:02:57]} 11. Bg5
{[%clk 0:02:56.4]} 11... Re8 {[%clk 0:02:55]} 12. Rad1 {[%clk 0:02:55.8]} 12...
h6 {[%clk 0:02:52.7]} 13. Bxf6 {[%clk 0:02:46.3]} 13... exf6 {[%clk 0:02:53.6]}
14. h3 {[%clk 0:02:46]} 14... f5 {[%clk 0:02:38.7]} 15. hxg4 {[%clk 0:02:40.1]}
15... fxe4 {[%clk 0:02:39]} 16. Qd2 {[%clk 0:02:40.8]} 16... exf3 {[%clk
0:02:39]} 17. Bxf3 {[%clk 0:02:41.7]} 17... Ne5 {[%clk 0:02:36.6]} 18. Be2
{[%clk 0:02:41.8]} 18... Qh4 {[%clk 0:02:29.5]} 19. g3 {[%clk 0:02:33]} 19...
Qd8 {[%clk 0:02:21.9]} 20. Kg2 {[%clk 0:02:26.1]} 20... Qd7 {[%clk 0:01:44.1]}
21. g5 {[%clk 0:02:11.9]} 21... hxg5 {[%clk 0:01:39.8]} 22. Qxg5 {[%clk
0:02:12.8]} 22... Qa4 {[%clk 0:01:35.4]} 23. Qf4 {[%clk 0:02:04.2]} 23... Qxa2
{[%clk 0:01:13.4]} 24. Rh1 {[%clk 0:02:02.6]} 24... Re6 {[%clk 0:01:03.7]} 25.
Bg4 {[%clk 0:01:26]} 25... Nxg4 {[%clk 0:00:44.1]} 26. Qxg4 {[%clk 0:01:26.9]}
26... Rc4 {[%clk 0:00:34.2]} 27. Qf3 {[%clk 0:01:14.2]} 27... Qxb2 {[%clk
0:00:30.7]} 28. Rb1 {[%clk 0:01:13.6]} 28... Qe2 {[%clk 0:00:30.7]} 29. Rxb7
{[%clk 0:01:10.6]} 29... Qxf3+ {[%clk 0:00:25.3]} 30. Kxf3 {[%clk 0:01:11.5]}
30... Rc5 {[%clk 0:00:18.2]} 31. c4 {[%clk 0:01:05]} 31... Rxc4 {[%clk
0:00:16.8]} 32. Rxa7 {[%clk 0:01:01.1]} 32... Rc5 {[%clk 0:00:16.5]} 33. Rd1
{[%clk 0:01:00.2]} 33... Bf8 {[%clk 0:00:14]} 34. Rd2 {[%clk 0:00:54.5]} 34...
Kg7 {[%clk 0:00:14.4]} 35. Kg2 {[%clk 0:00:54.6]} 35... Re5 {[%clk 0:00:13.8]}
36. Nf4 {[%clk 0:00:53.9]} 36... Rc8 {[%clk 0:00:12.6]} 37. Rb2 {[%clk
0:00:53.4]} 37... Re7 {[%clk 0:00:11]} 38. Ra6 {[%clk 0:00:52.2]} 38... Rd7
{[%clk 0:00:10.7]} 39. Nd5 {[%clk 0:00:52.5]} 39... Rc5 {[%clk 0:00:10.6]} 40.
Rd2 {[%clk 0:00:52.8]} 40... Rb7 {[%clk 0:00:10.6]} 41. Ra8 {[%clk 0:00:52.2]}
41... Rcb5 {[%clk 0:00:09.4]} 42. g4 {[%clk 0:00:46.4]} 42... Rb8 {[%clk
0:00:09.3]} 43. Ra7 {[%clk 0:00:45.8]} 43... R8b7 {[%clk 0:00:09.7]} 44. Ra8
{[%clk 0:00:46]} 44... Rb8 {[%clk 0:00:09.8]} 45. Ra6 {[%clk 0:00:45.7]} 45...
Rb2 {[%clk 0:00:09.6]} 46. Rd4 {[%clk 0:00:45.5]} 46... Rc8 {[%clk 0:00:09.4]}
47. g5 {[%clk 0:00:44.6]} 47... Rcc2 {[%clk 0:00:06.4]} 48. Rf4 {[%clk
0:00:44.6]} 48... Rb5 {[%clk 0:00:06.4]} 49. Nf6 {[%clk 0:00:39.2]} 49... Rxg5+
{[%clk 0:00:06.3]} 50. Kh3 {[%clk 0:00:39.8]} 50... Rf5 {[%clk 0:00:06]} 51.
Rxf5 {[%clk 0:00:39.7]} 51... gxf5 {[%clk 0:00:06.9]} 52. Ne8+ {[%clk 0:00:39]}
52... Kg8 {[%clk 0:00:07]} 53. f4 {[%clk 0:00:37.4]} 53... Re2 {[%clk
0:00:05.2]} 54. Nf6+ {[%clk 0:00:34.3]} 54... Kg7 {[%clk 0:00:05.2]} 55. Nd5
{[%clk 0:00:32.9]} 55... Rd2 {[%clk 0:00:05.4]} 56. Ra5 {[%clk 0:00:30.6]} 56...
Kg6 {[%clk 0:00:05.7]} 57. Kg3 {[%clk 0:00:30.8]} 57... Rd3+ {[%clk 0:00:06]}
58. Kf2 {[%clk 0:00:30.9]} 58... Rd4 {[%clk 0:00:05.3]} 59. Ke3 {[%clk
0:00:30.9]} 59... Re4+ {[%clk 0:00:05.7]} 60. Kf3 {[%clk 0:00:31.3]} 60... Bg7
{[%clk 0:00:06.2]} 61. Ne3 {[%clk 0:00:31.6]} 61... Re6 {[%clk 0:00:03.7]} 62.
Nxf5 {[%clk 0:00:31.2]} 62... Bf8 {[%clk 0:00:04.4]} 63. Rd5 {[%clk 0:00:31.3]}
63... Kf6 {[%clk 0:00:04.4]} 64. Ng3 {[%clk 0:00:31.5]} 64... Re1 {[%clk
0:00:04.5]} 65. Ne4+ {[%clk 0:00:31.7]} 65... Ke6 {[%clk 0:00:04.7]} 66. Ra5
{[%clk 0:00:30.4]} 66... d5 {[%clk 0:00:05.2]} 67. Ng5+ {[%clk 0:00:30.6]} 67...
Kd6 {[%clk 0:00:05.3]} 68. Nxf7+ {[%clk 0:00:30.4]} 68... Kc6 {[%clk 0:00:06]}
69. Ne5+ {[%clk 0:00:30.6]} 69... Kd6 {[%clk 0:00:06.5]} 70. Ra8 {[%clk
0:00:29.9]} 70... Be7 {[%clk 0:00:06.2]} 71. Ra6+ {[%clk 0:00:29.7]} 71... Kc7
{[%clk 0:00:06.6]} 72. Re6 {[%clk 0:00:22.9]} 72... Bd6 {[%clk 0:00:06]} 73. Kg4
{[%clk 0:00:20.8]} 73... Bxe5 {[%clk 0:00:06.2]} 74. fxe5 {[%clk 0:00:21.7]}
74... Kd7 {[%clk 0:00:06.3]} 75. Rd6+ {[%clk 0:00:20.8]} 75... Ke7 {[%clk
0:00:06.8]} 76. Kf4 {[%clk 0:00:21.2]} 76... Rf1+ {[%clk 0:00:06.3]} 77. Ke3
{[%clk 0:00:21.5]} 77... Re1+ {[%clk 0:00:05.7]} 78. Kd4 {[%clk 0:00:21.6]}
78... Rd1+ {[%clk 0:00:06.4]} 79. Kc5 {[%clk 0:00:21.9]} 79... Rc1+ {[%clk
0:00:04.2]} 80. Kxd5 {[%clk 0:00:22.2]} 80... Rd1+ {[%clk 0:00:04.9]} 81. Kc6
{[%clk 0:00:21.9]} 81... Re1 {[%clk 0:00:05.6]} 82. Kd5 {[%clk 0:00:19]} 82...
Rd1+ {[%clk 0:00:05.3]} 83. Kc5 {[%clk 0:00:19.9]} 83... Rxd6 {[%clk 0:00:05.2]}
84. exd6+ {[%clk 0:00:19.9]} 84... Kd7 {[%clk 0:00:05.9]} 85. Kd5 {[%clk
0:00:20.8]} 85... Kd8 {[%clk 0:00:06.4]} 86. Ke6 {[%clk 0:00:21.7]} 86... Ke8
{[%clk 0:00:06.8]} 87. d7+ {[%clk 0:00:22.6]} 87... Kd8 {[%clk 0:00:07.2]} 88.
Kd6 {[%clk 0:00:23.5]} 1/2-1/2

[Event "Early-Titled-Tuesday-Blitz-April-02-2024"]
[Site "Chess.com"]
[Date "2024.04.02"]
[Round "11"]
[White "edgarhay012"]
[Black "JoshuaGK27"]
[Result "1/2-1/2"]
[WhiteElo "2617"]
[BlackElo "2534"]
[TimeControl "180+1"]
[EndTime "10:09:45 PDT"]
[Termination "Game drawn - insufficient material"]

1. Nf3 {[%clk 0:03:00.9]} 1... Nf6 {[%clk 0:02:58.9]} 2. c4 {[%clk 0:03:00.1]}
2... e6 {[%clk 0:02:57]} 3. g3 {[%clk 0:02:58.6]} 3... d5 {[%clk 0:02:56.9]} 4.
b3 {[%clk 0:02:58.8]} 4... Be7 {[%clk 0:02:46.1]} 5. Bg2 {[%clk 0:02:58.7]} 5...
O-O {[%clk 0:02:46.9]} 6. O-O {[%clk 0:02:58.6]} 6... c5 {[%clk 0:02:45.3]} 7.
Bb2 {[%clk 0:02:58.9]} 7... Nc6 {[%clk 0:02:42.6]} 8. d3 {[%clk 0:02:55.9]} 8...
d4 {[%clk 0:02:36.5]} 9. Nbd2 {[%clk 0:02:54]} 9... Qc7 {[%clk 0:02:32.9]} 10.
Re1 {[%clk 0:02:53.8]} 10... b6 {[%clk 0:02:29.9]} 11. e4 {[%clk 0:02:53.5]}
11... Nd7 {[%clk 0:02:25.2]} 12. a3 {[%clk 0:02:49.9]} 12... Bb7 {[%clk
0:02:09.4]} 13. Qe2 {[%clk 0:02:48.5]} 13... e5 {[%clk 0:02:06.1]} 14. Kh1
{[%clk 0:02:46]} 14... a5 {[%clk 0:02:00.4]} 15. Rad1 {[%clk 0:02:36.3]} 15...
Rae8 {[%clk 0:02:00]} 16. Ng1 {[%clk 0:02:24]} 16... Bd6 {[%clk 0:01:58.6]} 17.
Nf1 {[%clk 0:02:22.4]} 17... Bc8 {[%clk 0:01:55.7]} 18. Bc1 {[%clk 0:02:22.2]}
18... Nf6 {[%clk 0:01:53.3]} 19. h3 {[%clk 0:02:20.3]} 19... Kh8 {[%clk
0:01:51.4]} 20. f4 {[%clk 0:02:20]} 20... exf4 {[%clk 0:01:44.4]} 21. gxf4
{[%clk 0:02:20.3]} 21... Bxf4 {[%clk 0:01:42.9]} 22. Bxf4 {[%clk 0:02:16]} 22...
Qxf4 {[%clk 0:01:43.8]} 23. Qd2 {[%clk 0:02:13.3]} 23... Qxd2 {[%clk 0:01:42.1]}
24. Nxd2 {[%clk 0:02:14.2]} 24... Ne5 {[%clk 0:01:42]} 25. Ndf3 {[%clk
0:02:14.8]} 25... Nfd7 {[%clk 0:01:34.3]} 26. b4 {[%clk 0:02:12.5]} 26... Nxf3
{[%clk 0:01:29.2]} 27. Nxf3 {[%clk 0:02:11.3]} 27... Ne5 {[%clk 0:01:30.1]} 28.
Nxe5 {[%clk 0:02:08.4]} 28... Rxe5 {[%clk 0:01:31]} 29. bxa5 {[%clk 0:02:09.1]}
29... bxa5 {[%clk 0:01:31.1]} 30. Rb1 {[%clk 0:02:09.8]} 30... f5 {[%clk
0:01:21.1]} 31. exf5 {[%clk 0:02:08.6]} 31... Rxe1+ {[%clk 0:01:20.7]} 32. Rxe1
{[%clk 0:02:09.5]} 32... Bxf5 {[%clk 0:01:21.1]} 33. Bf1 {[%clk 0:02:04.3]}
33... Bg6 {[%clk 0:01:10.4]} 34. Kg1 {[%clk 0:02:03.4]} 34... h6 {[%clk
0:01:00.2]} 35. Re5 {[%clk 0:02:02.9]} 35... Rf3 {[%clk 0:00:55.9]} 36. Be2
{[%clk 0:01:47.2]} 36... Rxh3 {[%clk 0:00:49.1]} 37. Re6 {[%clk 0:00:52.9]}
37... Re3 {[%clk 0:00:38.4]} 38. Rxg6 {[%clk 0:00:20.2]} 38... Rxe2 {[%clk
0:00:38.9]} 39. Rc6 {[%clk 0:00:20.5]} 39... Re3 {[%clk 0:00:38.5]} 40. Rxc5
{[%clk 0:00:20.9]} 40... Rxd3 {[%clk 0:00:38.9]} 41. Rxa5 {[%clk 0:00:21.8]}
41... Rc3 {[%clk 0:00:39]} 42. c5 {[%clk 0:00:20.9]} 42... Rc2 {[%clk
0:00:36.4]} 43. Kf1 {[%clk 0:00:15.1]} 43... d3 {[%clk 0:00:36.1]} 44. Ke1
{[%clk 0:00:15.2]} 44... Kh7 {[%clk 0:00:36.4]} 45. Kd1 {[%clk 0:00:15.6]} 45...
Kg6 {[%clk 0:00:33.9]} 46. Ra6+ {[%clk 0:00:15.8]} 46... Kg5 {[%clk 0:00:34]}
47. c6 {[%clk 0:00:16.4]} 47... h5 {[%clk 0:00:33.6]} 48. Ra7 {[%clk 0:00:16.2]}
48... g6 {[%clk 0:00:27.7]} 49. c7 {[%clk 0:00:16.5]} 49... h4 {[%clk
0:00:27.6]} 50. Ra5+ {[%clk 0:00:14.1]} 50... Kg4 {[%clk 0:00:26.5]} 51. Ra4+
{[%clk 0:00:13.7]} 51... Kf3 {[%clk 0:00:24.5]} 52. Rxh4 {[%clk 0:00:12.5]}
52... Rxc7 {[%clk 0:00:24.4]} 53. Rd4 {[%clk 0:00:12.5]} 53... Ke3 {[%clk
0:00:23.9]} 54. Rg4 {[%clk 0:00:12.8]} 54... Rc6 {[%clk 0:00:23]} 55. Rg3+
{[%clk 0:00:13.1]} 55... Kd4 {[%clk 0:00:23.3]} 56. Kd2 {[%clk 0:00:12.6]} 56...
Rc2+ {[%clk 0:00:23]} 57. Kd1 {[%clk 0:00:13.2]} 57... Rc6 {[%clk 0:00:13]} 58.
Kd2 {[%clk 0:00:12.2]} 58... Rc2+ {[%clk 0:00:09.8]} 59. Kd1 {[%clk 0:00:10.3]}
59... Ra2 {[%clk 0:00:10.3]} 60. Rxg6 {[%clk 0:00:08.1]} 60... Ra1+ {[%clk
0:00:10.1]} 61. Kd2 {[%clk 0:00:08.1]} 61... Ra2+ {[%clk 0:00:11]} 62. Kd1
{[%clk 0:00:08.2]} 62... Rxa3 {[%clk 0:00:11.9]} 63. Rd6+ {[%clk 0:00:07.7]}
63... Kc5 {[%clk 0:00:11.2]} 64. Rd8 {[%clk 0:00:07.6]} 64... Kc4 {[%clk
0:00:11.3]} 65. Kd2 {[%clk 0:00:07.8]} 65... Ra2+ {[%clk 0:00:11.4]} 66. Kd1
{[%clk 0:00:08.5]} 66... Ra5 {[%clk 0:00:11.6]} 67. Kd2 {[%clk 0:00:07.4]} 67...
Ra2+ {[%clk 0:00:11.7]} 68. Kd1 {[%clk 0:00:06.9]} 68... Rh2 {[%clk 0:00:09.1]}
69. Rc8+ {[%clk 0:00:06]} 69... Kd4 {[%clk 0:00:09.6]} 70. Rd8+ {[%clk
0:00:06.6]} 70... Kc3 {[%clk 0:00:10.3]} 71. Rc8+ {[%clk 0:00:06.7]} 71... Kb2
{[%clk 0:00:10.3]} 72. Rb8+ {[%clk 0:00:06.2]} 72... Kc3 {[%clk 0:00:09.3]} 73.
Rc8+ {[%clk 0:00:04.6]} 73... Kb4 {[%clk 0:00:09.9]} 74. Rb8+ {[%clk 0:00:04.4]}
74... Kc5 {[%clk 0:00:10.2]} 75. Rc8+ {[%clk 0:00:05]} 75... Kd4 {[%clk
0:00:10.6]} 76. Rd8+ {[%clk 0:00:05.2]} 76... Ke3 {[%clk 0:00:11.1]} 77. Re8+
{[%clk 0:00:05.6]} 77... Kf4 {[%clk 0:00:11.6]} 78. Rf8+ {[%clk 0:00:06]} 78...
Ke5 {[%clk 0:00:12]} 79. Re8+ {[%clk 0:00:06.3]} 79... Kf6 {[%clk 0:00:12.6]}
80. Rf8+ {[%clk 0:00:06.5]} 80... Ke5 {[%clk 0:00:12.8]} 81. Rd8 {[%clk
0:00:06.2]} 81... Kf5 {[%clk 0:00:13.6]} 82. Rxd3 {[%clk 0:00:06]} 82... Rh1+
{[%clk 0:00:14.4]} 83. Kc2 {[%clk 0:00:06.1]} 83... Rh2+ {[%clk 0:00:15.1]} 84.
Kc3 {[%clk 0:00:06.7]} 84... Rh4 {[%clk 0:00:15.5]} 85. Rd8 {[%clk 0:00:06.8]}
85... Ke6 {[%clk 0:00:14.9]} 86. Rc8 {[%clk 0:00:07.1]} 86... Kd7 {[%clk
0:00:15.2]} 87. Rc5 {[%clk 0:00:07.2]} 87... Kd6 {[%clk 0:00:15.5]} 88. Rg5
{[%clk 0:00:07.7]} 88... Kd7 {[%clk 0:00:16]} 89. Rg3 {[%clk 0:00:07.7]} 89...
Ke6 {[%clk 0:00:16.3]} 90. Rd3 {[%clk 0:00:08.3]} 90... Ke7 {[%clk 0:00:16.5]}
91. Rd4 {[%clk 0:00:08.7]} 91... Rxd4 {[%clk 0:00:16.3]} 92. Kxd4 {[%clk
0:00:09.6]} 1/2-1/2

[Event "Early-Titled-Tuesday-Blitz-April-02-2024"]
[Site "Chess.com"]
[Date "2024.04.02"]
[Round "11"]
[White "GoltsevDmitry2000"]
[Black "Meri-Arabidze"]
[Result "0-1"]
[WhiteElo "2817"]
[BlackElo "2707"]
[TimeControl "180+1"]
[EndTime "10:09:49 PDT"]
[Termination "Meri-Arabidze won by checkmate"]

1. d4 {[%clk 0:03:00.2]} 1... Nf6 {[%clk 0:03:00]} 2. Nc3 {[%clk 0:03:00.9]}
2... d5 {[%clk 0:02:58.9]} 3. Bf4 {[%clk 0:03:01.4]} 3... e6 {[%clk 0:02:58.1]}
4. e3 {[%clk 0:03:00.8]} 4... Bb4 {[%clk 0:02:54.8]} 5. Nf3 {[%clk 0:03:00.4]}
5... O-O {[%clk 0:02:54.5]} 6. Ne5 {[%clk 0:02:57.5]} 6... Ne4 {[%clk
0:02:52.5]} 7. Qd3 {[%clk 0:02:57.3]} 7... c5 {[%clk 0:02:49.6]} 8. dxc5 {[%clk
0:02:56.1]} 8... Qa5 {[%clk 0:02:46.5]} 9. Rd1 {[%clk 0:02:16.3]} 9... Nxc3
{[%clk 0:02:02]} 10. bxc3 {[%clk 0:02:16.1]} 10... Bxc3+ {[%clk 0:02:02.3]} 11.
Ke2 {[%clk 0:02:15.8]} 11... Qxc5 {[%clk 0:02:02.7]} 12. Nf3 {[%clk 0:02:02.4]}
12... b6 {[%clk 0:01:51.4]} 13. Bd6 {[%clk 0:01:47.7]} 13... Qxd6 {[%clk
0:01:45.3]} 14. Qxc3 {[%clk 0:01:47.6]} 14... Nc6 {[%clk 0:01:38.2]} 15. Kd2
{[%clk 0:01:35.1]} 15... Bb7 {[%clk 0:01:34.8]} 16. Bd3 {[%clk 0:01:33.5]} 16...
Rfc8 {[%clk 0:01:31.1]} 17. Ke2 {[%clk 0:01:15.9]} 17... Nb4 {[%clk 0:01:30.7]}
18. Qb2 {[%clk 0:01:11.6]} 18... h6 {[%clk 0:01:20.4]} 19. a3 {[%clk 0:01:10.1]}
19... Nxd3 {[%clk 0:01:20.4]} 20. cxd3 {[%clk 0:01:10.5]} 20... Ba6 {[%clk
0:01:17.9]} 21. Rd2 {[%clk 0:01:09.3]} 21... Rc7 {[%clk 0:01:16.8]} 22. a4
{[%clk 0:01:01.6]} 22... Rac8 {[%clk 0:01:16.5]} 23. Nd4 {[%clk 0:01:01.4]}
23... Rc5 {[%clk 0:01:02.7]} 24. f4 {[%clk 0:00:58.2]} 24... Ra5 {[%clk
0:00:57.3]} 25. Ra1 {[%clk 0:00:57.1]} 25... Qd7 {[%clk 0:00:53]} 26. Qa3 {[%clk
0:00:52.3]} 26... Rac5 {[%clk 0:00:51.6]} 27. Qb4 {[%clk 0:00:47.1]} 27... Qd8
{[%clk 0:00:45.1]} 28. g3 {[%clk 0:00:43.8]} 28... Qd7 {[%clk 0:00:44.8]} 29. a5
{[%clk 0:00:43.5]} 29... b5 {[%clk 0:00:29.4]} 30. Rf1 {[%clk 0:00:36.1]} 30...
Bb7 {[%clk 0:00:28.4]} 31. Qb2 {[%clk 0:00:30.4]} 31... a6 {[%clk 0:00:28]} 32.
Nf3 {[%clk 0:00:30.9]} 32... f6 {[%clk 0:00:27.7]} 33. Nd4 {[%clk 0:00:30.6]}
33... Kh8 {[%clk 0:00:24.5]} 34. f5 {[%clk 0:00:30]} 34... e5 {[%clk 0:00:20.5]}
35. Ne6 {[%clk 0:00:24.6]} 35... Rc3 {[%clk 0:00:21.1]} 36. g4 {[%clk
0:00:21.3]} 36... d4 {[%clk 0:00:21]} 37. e4 {[%clk 0:00:20.3]} 37... Qc6 {[%clk
0:00:14.3]} 38. Rf3 {[%clk 0:00:15.4]} 38... Rc2 {[%clk 0:00:14.5]} 39. Qxc2
{[%clk 0:00:08.6]} 39... Qxc2 {[%clk 0:00:15.4]} 40. Rxc2 {[%clk 0:00:09.5]}
40... Rxc2+ {[%clk 0:00:16.3]} 41. Ke1 {[%clk 0:00:08.1]} 41... Rc3 {[%clk
0:00:16]} 42. Kd2 {[%clk 0:00:07.8]} 42... Bxe4 {[%clk 0:00:15.1]} 43. Rg3
{[%clk 0:00:06.1]} 43... Bd5 {[%clk 0:00:15.4]} 44. Nf8 {[%clk 0:00:04.5]} 44...
Kg8 {[%clk 0:00:14.3]} 45. Ng6 {[%clk 0:00:03.6]} 45... Kf7 {[%clk 0:00:14.6]}
46. Rg1 {[%clk 0:00:02.4]} 46... b4 {[%clk 0:00:14.5]} 47. Ra1 {[%clk
0:00:02.7]} 47... b3 {[%clk 0:00:14.1]} 48. Rc1 {[%clk 0:00:02.9]} 48... b2
{[%clk 0:00:13.6]} 49. Rb1 {[%clk 0:00:03.2]} 49... Rb3 {[%clk 0:00:09.9]} 50.
Kc2 {[%clk 0:00:03.7]} 50... Rb5 {[%clk 0:00:07.1]} 51. Rxb2 {[%clk 0:00:03.9]}
51... Rxb2+ {[%clk 0:00:07.3]} 52. Kxb2 {[%clk 0:00:04.8]} 52... Bf3 {[%clk
0:00:07.3]} 53. h3 {[%clk 0:00:04.8]} 53... Bg2 {[%clk 0:00:07.5]} 54. Nh8+
{[%clk 0:00:03.9]} 54... Kg8 {[%clk 0:00:07]} 55. Ng6 {[%clk 0:00:03]} 55...
Bxh3 {[%clk 0:00:07.4]} 56. Ne7+ {[%clk 0:00:03.3]} 56... Kf7 {[%clk 0:00:07.8]}
57. Nd5 {[%clk 0:00:03.6]} 57... Bxg4 {[%clk 0:00:07.8]} 58. Nc7 {[%clk
0:00:04.2]} 58... Bxf5 {[%clk 0:00:08.1]} 59. Nxa6 {[%clk 0:00:04.6]} 59... Bxd3
{[%clk 0:00:08.4]} 60. Nc5 {[%clk 0:00:05.5]} 60... Bb5 {[%clk 0:00:07.8]} 61.
Kb3 {[%clk 0:00:05.6]} 61... d3 {[%clk 0:00:06.3]} 62. Ne4 {[%clk 0:00:06]}
62... Ba6 {[%clk 0:00:04.3]} 63. Nc5 {[%clk 0:00:05.3]} 63... Bb5 {[%clk
0:00:04.2]} 64. Ne4 {[%clk 0:00:04.5]} 64... Ke6 {[%clk 0:00:04.5]} 65. Kb4
{[%clk 0:00:04.5]} 65... Bc6 {[%clk 0:00:03.3]} 66. Nc5+ {[%clk 0:00:04.3]}
66... Kd6 {[%clk 0:00:03.6]} 67. Nxd3 {[%clk 0:00:05.2]} 67... h5 {[%clk
0:00:04.1]} 68. a6 {[%clk 0:00:03.6]} 68... h4 {[%clk 0:00:04.2]} 69. Nf2 {[%clk
0:00:04]} 69... g5 {[%clk 0:00:04]} 70. Kc3 {[%clk 0:00:04.5]} 70... f5 {[%clk
0:00:04]} 71. Kd3 {[%clk 0:00:05]} 71... Bb5+ {[%clk 0:00:03.1]} 72. Ke3 {[%clk
0:00:04.6]} 72... Bxa6 {[%clk 0:00:04]} 73. Nh3 {[%clk 0:00:05]} 73... g4 {[%clk
0:00:03.7]} 74. Nf2 {[%clk 0:00:05.4]} 74... f4+ {[%clk 0:00:04.2]} 75. Ke4
{[%clk 0:00:05.4]} 75... g3 {[%clk 0:00:04.9]} 76. Nh3 {[%clk 0:00:05.4]} 76...
Bb7+ {[%clk 0:00:05.2]} 77. Kf5 {[%clk 0:00:05.4]} 77... Bc8+ {[%clk 0:00:05.7]}
78. Kg5 {[%clk 0:00:04.1]} 78... Bxh3 {[%clk 0:00:06.6]} 79. Kxh4 {[%clk
0:00:04.8]} 79... g2 {[%clk 0:00:07.2]} 80. Kg5 {[%clk 0:00:05.3]} 80... g1=Q+
{[%clk 0:00:07.5]} 81. Kf6 {[%clk 0:00:06.2]} 81... f3 {[%clk 0:00:08.2]} 82.
Kf7 {[%clk 0:00:03.7]} 82... f2 {[%clk 0:00:08.6]} 83. Kf8 {[%clk 0:00:01.7]}
83... f1=Q+ {[%clk 0:00:08.6]} 84. Ke8 {[%clk 0:00:02.6]} 84... Qg8# {[%clk
0:00:08.7]} 0-1